[Event "Live Chess"]
[Site "Chess.com"]
[Date "2023.05.20"]
[Round "-"]
[White "Supertromp"]
[Black "ViktorTheCoolBoy"]
[Result "1/2-1/2"]
[WhiteElo "2191"]
[BlackElo "2497"]
[TimeControl "300"]
[EndTime "13:41:21 PDT"]
[Termination "Game drawn - insufficient material"]

1. e4 {[%clk 0:04:57.4]} 1... c5 {[%clk 0:04:56.5]} 2. Nf3 {[%clk 0:04:55.8]}
2... Nc6 {[%clk 0:04:55.7]} 3. Bb5 {[%clk 0:04:54.4]} 3... e6 {[%clk 0:04:54.1]}
4. Bxc6 {[%clk 0:04:52.7]} 4... bxc6 {[%clk 0:04:52.1]} 5. O-O {[%clk
0:04:51.7]} 5... Ne7 {[%clk 0:04:50]} 6. h4 {[%clk 0:04:42.7]} 6... h5 {[%clk
0:04:46.7]} 7. d3 {[%clk 0:04:35]} 7... Ng6 {[%clk 0:04:45.3]} 8. Nc3 {[%clk
0:04:17.4]} 8... Nxh4 {[%clk 0:04:41.6]} 9. Nxh4 {[%clk 0:04:04.5]} 9... Qxh4
{[%clk 0:04:41.5]} 10. Be3 {[%clk 0:03:47.9]} 10... Bd6 {[%clk 0:04:32.9]} 11.
f4 {[%clk 0:03:38.8]} 11... Qg3 {[%clk 0:04:31.1]} 12. Qd2 {[%clk 0:03:25.1]}
12... h4 {[%clk 0:04:29.3]} 13. e5 {[%clk 0:03:23.7]} 13... Be7 {[%clk
0:04:19.4]} 14. Ne4 {[%clk 0:03:22.2]} 14... Qg4 {[%clk 0:04:18.6]} 15. Bxc5
{[%clk 0:02:51.1]} 15... Bxc5+ {[%clk 0:04:14.1]} 16. Nxc5 {[%clk 0:02:51]}
16... h3 {[%clk 0:04:13.1]} 17. Ne4 {[%clk 0:02:49.9]} 17... d5 {[%clk
0:04:04.2]} 18. exd6 {[%clk 0:02:44.8]} 18... f5 {[%clk 0:03:55.8]} 19. Ng5
{[%clk 0:02:27.8]} 19... c5 {[%clk 0:03:47.8]} 20. Rae1 {[%clk 0:02:19.2]} 20...
Bb7 {[%clk 0:03:44.4]} 21. Rxe6+ {[%clk 0:02:17.9]} 21... Kf8 {[%clk 0:03:42.9]}
22. Rfe1 {[%clk 0:01:29.7]} 22... hxg2 {[%clk 0:03:39]} 23. Kf2 {[%clk
0:01:12.7]} 23... g1=Q+ {[%clk 0:03:23.7]} 24. Rxg1 {[%clk 0:01:09.7]} 24...
Rh2+ {[%clk 0:03:21.1]} 25. Kf1 {[%clk 0:01:06.7]} 25... Qxg1+ {[%clk
0:02:55.3]} 26. Kxg1 {[%clk 0:01:05.1]} 26... Rxd2 {[%clk 0:02:54.8]} 27. Re5
{[%clk 0:00:58.3]} 27... Re8 {[%clk 0:02:41.4]} 28. d7 {[%clk 0:00:55.4]} 28...
Rd8 {[%clk 0:02:39.5]} 29. Ne6+ {[%clk 0:00:54.4]} 29... Ke7 {[%clk 0:02:39]}
30. Nxc5+ {[%clk 0:00:46.3]} 30... Kf6 {[%clk 0:02:34.9]} 31. Re8 {[%clk
0:00:36.4]} 31... Rxd7 {[%clk 0:02:26.6]} 32. Nxd7+ {[%clk 0:00:36.3]} 32... Kf7
{[%clk 0:02:25.6]} 33. Re5 {[%clk 0:00:35.2]} 33... Rxc2 {[%clk 0:02:22]} 34.
Rxf5+ {[%clk 0:00:34]} 34... Ke6 {[%clk 0:02:21.2]} 35. Rb5 {[%clk 0:00:27.8]}
35... Bc6 {[%clk 0:02:15.4]} 36. Nc5+ {[%clk 0:00:27.1]} 36... Kf7 {[%clk
0:02:00.3]} 37. Ra5 {[%clk 0:00:25.8]} 37... Rxb2 {[%clk 0:01:58.9]} 38. Rxa7+
{[%clk 0:00:25.1]} 38... Kf6 {[%clk 0:01:56.7]} 39. a4 {[%clk 0:00:24.5]} 39...
Kf5 {[%clk 0:01:48.8]} 40. Rxg7 {[%clk 0:00:20.9]} 40... Kxf4 {[%clk 0:01:47.3]}
41. a5 {[%clk 0:00:20]} 41... Ke3 {[%clk 0:01:41.7]} 42. Re7+ {[%clk 0:00:18.1]}
42... Kd4 {[%clk 0:01:39.8]} 43. Ne6+ {[%clk 0:00:17.2]} 43... Kxd3 {[%clk
0:01:38.3]} 44. Nf4+ {[%clk 0:00:15.7]} 44... Kd4 {[%clk 0:01:36.6]} 45. Re2
{[%clk 0:00:13.9]} 45... Rb1+ {[%clk 0:01:34]} 46. Kf2 {[%clk 0:00:13.1]} 46...
Ra1 {[%clk 0:01:32.1]} 47. Ne6+ {[%clk 0:00:12.5]} 47... Kd5 {[%clk 0:01:30.2]}
48. Nf4+ {[%clk 0:00:12.4]} 48... Kd6 {[%clk 0:01:28.2]} 49. Re6+ {[%clk
0:00:10.5]} 49... Kc5 {[%clk 0:01:26.5]} 50. Ne2 {[%clk 0:00:08.8]} 50... Rxa5
{[%clk 0:01:23.4]} 51. Re5+ {[%clk 0:00:06.6]} 51... Bd5 {[%clk 0:01:22.4]} 52.
Nc3 {[%clk 0:00:06.5]} 52... Kd4 {[%clk 0:01:20.9]} 53. Rxd5+ {[%clk 0:00:06.1]}
53... Rxd5 {[%clk 0:01:18.9]} 54. Nxd5 {[%clk 0:00:06]} 1/2-1/2

[Event "Live Chess"]
[Site "Chess.com"]
[Date "2023.05.20"]
[Round "-"]
[White "Ferrarifan27"]
[Black "Long1968"]
[Result "1-0"]
[WhiteElo "2061"]
[BlackElo "1079"]
[TimeControl "300"]
[EndTime "13:41:42 PDT"]
[Termination "Ferrarifan27 won on time"]

1. e4 {[%clk 0:04:56.5]} 1... e6 {[%clk 0:04:57.2]} 2. d4 {[%clk 0:04:55.3]}
2... d5 {[%clk 0:04:53.3]} 3. Nc3 {[%clk 0:04:53.2]} 3... Nf6 {[%clk 0:04:49.2]}
4. Bg5 {[%clk 0:04:50.5]} 4... Be7 {[%clk 0:04:43.1]} 5. e5 {[%clk 0:04:48.6]}
5... Nfd7 {[%clk 0:04:39.6]} 6. h4 {[%clk 0:04:45.2]} 6... h6 {[%clk 0:04:32.5]}
7. Bxe7 {[%clk 0:04:43.8]} 7... Qxe7 {[%clk 0:04:30.4]} 8. Nf3 {[%clk 0:04:43]}
8... f6 {[%clk 0:04:26.5]} 9. exf6 {[%clk 0:04:39.3]} 9... Nxf6 {[%clk
0:04:23.9]} 10. Bd3 {[%clk 0:04:37.3]} 10... O-O {[%clk 0:04:20.6]} 11. Ne5
{[%clk 0:04:35.4]} 11... Rf7 {[%clk 0:03:31.2]} 12. Nxf7 {[%clk 0:04:28.3]}
12... Qxf7 {[%clk 0:03:25.6]} 13. Qe2 {[%clk 0:04:24.5]} 13... Nc6 {[%clk
0:03:16.1]} 14. O-O-O {[%clk 0:03:59.1]} 14... Bd7 {[%clk 0:03:12.1]} 15. Nb5
{[%clk 0:03:37.2]} 15... a6 {[%clk 0:02:44.7]} 16. Nxc7 {[%clk 0:03:28.3]} 16...
Rc8 {[%clk 0:02:40.8]} 17. Nxa6 {[%clk 0:03:20.1]} 17... bxa6 {[%clk 0:02:30.2]}
18. Bxa6 {[%clk 0:03:08.5]} 18... Nb4 {[%clk 0:02:24.1]} 19. Bd3 {[%clk
0:03:02]} 19... Bb5 {[%clk 0:02:02.6]} 20. Bxb5 {[%clk 0:02:56.7]} 20... Rxc2+
{[%clk 0:01:57.6]} 21. Qxc2 {[%clk 0:02:55.5]} 21... Nxc2 {[%clk 0:01:53.9]} 22.
Kxc2 {[%clk 0:02:55.1]} 22... Qc7+ {[%clk 0:01:39.4]} 23. Kb1 {[%clk 0:02:53.7]}
23... Ne4 {[%clk 0:01:26.9]} 24. Rhf1 {[%clk 0:02:32.9]} 24... Qb6 {[%clk
0:01:14]} 25. a4 {[%clk 0:02:19.2]} 25... Nd6 {[%clk 0:00:57.6]} 26. Rfe1 {[%clk
0:02:01.2]} 26... Nc4 {[%clk 0:00:44.1]} 27. Bxc4 {[%clk 0:01:55.2]} 27... dxc4
{[%clk 0:00:39.9]} 28. Rc1 {[%clk 0:01:49.8]} 28... Qxd4 {[%clk 0:00:30.4]} 29.
Rxe6 {[%clk 0:01:47.1]} 29... Qxf2 {[%clk 0:00:17.6]} 30. Rc6 {[%clk 0:01:28.3]}
30... Qxg2 {[%clk 0:00:13.4]} 31. R6xc4 {[%clk 0:01:27.4]} 31... Qf3 {[%clk
0:00:02.2]} 32. Ka2 {[%clk 0:01:22.1]} 1-0

[Event "Live Chess"]
[Site "Chess.com"]
[Date "2023.05.20"]
[Round "-"]
[White "fso"]
[Black "Bot_Boy"]
[Result "1-0"]
[WhiteElo "2262"]
[BlackElo "324"]
[TimeControl "300"]
[EndTime "13:41:43 PDT"]
[Termination "fso won on time"]

1. e4 {[%clk 0:04:57.7]} 1... Nc6 {[%clk 0:04:58.6]} 2. Nf3 {[%clk 0:04:55.3]}
2... e5 {[%clk 0:04:51.6]} 3. Nc3 {[%clk 0:04:36]} 3... Nf6 {[%clk 0:04:45]} 4.
Nxe5 {[%clk 0:04:27.9]} 4... Nxe5 {[%clk 0:04:42.3]} 5. d4 {[%clk 0:04:26.8]}
5... Nc6 {[%clk 0:04:29.5]} 6. d5 {[%clk 0:04:24]} 6... Ne7 {[%clk 0:04:27]} 7.
e5 {[%clk 0:04:22.4]} 7... Nfg8 {[%clk 0:04:20]} 8. d6 {[%clk 0:04:21.3]} 8...
Nc6 {[%clk 0:04:05.2]} 9. Nb5 {[%clk 0:04:19.5]} 9... cxd6 {[%clk 0:03:53.8]}
10. exd6 {[%clk 0:04:19.4]} 10... Bxd6 {[%clk 0:03:36.2]} 11. Nxd6+ {[%clk
0:03:54.1]} 11... Kf8 {[%clk 0:03:29.6]} 12. Be3 {[%clk 0:03:51.6]} 12... Nf6
{[%clk 0:02:44.1]} 13. Bc5 {[%clk 0:03:27.1]} 13... Kg8 {[%clk 0:02:25.9]} 14.
Bc4 {[%clk 0:03:19.7]} 14... Ne5 {[%clk 0:02:10.1]} 15. O-O {[%clk 0:02:50.3]}
15... Nxc4 {[%clk 0:01:44.5]} 16. Nxc4 {[%clk 0:02:48.5]} 16... h5 {[%clk
0:01:24.4]} 17. Nd6 {[%clk 0:02:41.2]} 17... b6 {[%clk 0:00:58.2]} 18. Bd4
{[%clk 0:02:13.5]} 18... Qc7 {[%clk 0:00:25.1]} 19. Bxf6 {[%clk 0:02:03]} 19...
gxf6 {[%clk 0:00:17.3]} 20. Re1 {[%clk 0:01:47.7]} 20... Kh7 {[%clk 0:00:07.1]}
21. Qxh5+ {[%clk 0:01:41.9]} 1-0

[Event "Live Chess"]
[Site "Chess.com"]
[Date "2023.05.20"]
[Round "-"]
[White "domrobson"]
[Black "luckywookie"]
[Result "1-0"]
[WhiteElo "1763"]
[BlackElo "744"]
[TimeControl "300"]
[EndTime "13:41:45 PDT"]
[Termination "domrobson won on time"]

1. d4 {[%clk 0:04:58.9]} 1... d5 {[%clk 0:04:58.7]} 2. c4 {[%clk 0:04:57.7]}
2... c6 {[%clk 0:04:58]} 3. Nf3 {[%clk 0:04:56.7]} 3... Nf6 {[%clk 0:04:55.4]}
4. Nc3 {[%clk 0:04:55.8]} 4... e6 {[%clk 0:04:46.8]} 5. Bg5 {[%clk 0:04:51]}
5... Nbd7 {[%clk 0:04:44.5]} 6. e3 {[%clk 0:04:48]} 6... Qa5 {[%clk 0:04:34.2]}
7. Bxf6 {[%clk 0:04:43.8]} 7... Nxf6 {[%clk 0:04:32.5]} 8. Nd2 {[%clk
0:04:34.4]} 8... Bb4 {[%clk 0:04:09.9]} 9. Qb3 {[%clk 0:04:30.1]} 9... Bxc3
{[%clk 0:03:58.2]} 10. bxc3 {[%clk 0:04:21.1]} 10... O-O {[%clk 0:03:37.4]} 11.
Bd3 {[%clk 0:04:16.2]} 11... b6 {[%clk 0:03:27.9]} 12. O-O {[%clk 0:04:13.8]}
12... Ba6 {[%clk 0:03:26.3]} 13. Qc2 {[%clk 0:04:06.3]} 13... b5 {[%clk
0:03:09.7]} 14. cxb5 {[%clk 0:04:02.8]} 14... Bxb5 {[%clk 0:03:07.1]} 15. Nb3
{[%clk 0:04:00.1]} 15... Bxd3 {[%clk 0:02:53.5]} 16. Qxd3 {[%clk 0:03:58.9]}
16... Qb5 {[%clk 0:02:48.1]} 17. Qxb5 {[%clk 0:03:53.9]} 17... cxb5 {[%clk
0:02:46.6]} 18. a4 {[%clk 0:03:53.1]} 18... Rab8 {[%clk 0:02:39.9]} 19. axb5
{[%clk 0:03:51.7]} 19... Rxb5 {[%clk 0:02:37.4]} 20. Nc5 {[%clk 0:03:51.3]}
20... Rfb8 {[%clk 0:02:21.5]} 21. Rxa7 {[%clk 0:03:49.2]} 21... Rb1 {[%clk
0:02:01.5]} 22. Ra1 {[%clk 0:03:46.8]} 22... Rxf1+ {[%clk 0:01:48.1]} 23. Kxf1
{[%clk 0:03:45.2]} 23... h5 {[%clk 0:01:37.4]} 24. Ke2 {[%clk 0:03:42.1]} 24...
g5 {[%clk 0:01:35.7]} 25. h3 {[%clk 0:03:40.6]} 25... h4 {[%clk 0:01:33.9]} 26.
Kd3 {[%clk 0:03:36.8]} 26... Rb2 {[%clk 0:01:15.8]} 27. Rf1 {[%clk 0:03:31.5]}
27... Kf8 {[%clk 0:00:50.5]} 28. g3 {[%clk 0:03:28.5]} 28... g4 {[%clk
0:00:42.9]} 29. gxh4 {[%clk 0:03:20.9]} 29... gxh3 {[%clk 0:00:41.7]} 30. Rh1
{[%clk 0:03:19.7]} 30... Rxf2 {[%clk 0:00:39.6]} 31. Rxh3 {[%clk 0:03:19.2]}
31... Ng4 {[%clk 0:00:31.8]} 32. Rf3 {[%clk 0:03:14.5]} 32... Rxf3 {[%clk
0:00:25.8]} 33. c4 {[%clk 0:03:09.6]} 33... Rh3 {[%clk 0:00:23.1]} 34. cxd5
{[%clk 0:03:08.6]} 34... exd5 {[%clk 0:00:21.5]} 35. Ke2 {[%clk 0:03:06.3]}
35... Rxe3+ {[%clk 0:00:18.6]} 36. Kd2 {[%clk 0:03:04.7]} 36... Rh3 {[%clk
0:00:17.8]} 37. h5 {[%clk 0:03:03.9]} 37... Rxh5 {[%clk 0:00:16.9]} 38. Nb7
{[%clk 0:03:02.9]} 38... Ke7 {[%clk 0:00:16.8]} 39. Nc5 {[%clk 0:03:02.2]} 39...
Kd6 {[%clk 0:00:13.5]} 40. Ke2 {[%clk 0:03:01.2]} 40... Kc6 {[%clk 0:00:13]} 41.
Kf3 {[%clk 0:02:59.9]} 41... Kb6 {[%clk 0:00:12.9]} 42. Kxg4 {[%clk 0:02:58.9]}
42... Kb5 {[%clk 0:00:12.8]} 43. Kxh5 {[%clk 0:02:57.3]} 43... f6 {[%clk
0:00:11.4]} 44. Kg6 {[%clk 0:02:56]} 44... Kc4 {[%clk 0:00:11.2]} 45. Ne6 {[%clk
0:02:54.7]} 45... f5 {[%clk 0:00:08.1]} 46. Kxf5 {[%clk 0:02:53.8]} 46... Kd3
{[%clk 0:00:02.6]} 47. Ke5 {[%clk 0:02:53.7]} 47... Ke3 {[%clk 0:00:01.7]} 48.
Nf4 {[%clk 0:02:53.6]} 48... Kf3 {[%clk 0:00:00.6]} 49. Nxd5 {[%clk 0:02:53.5]}
1-0

[Event "Live Chess"]
[Site "Chess.com"]
[Date "2023.05.20"]
[Round "-"]
[White "parcellforce"]
[Black "chrisbradgate"]
[Result "1-0"]
[WhiteElo "1384"]
[BlackElo "847"]
[TimeControl "300"]
[EndTime "13:41:46 PDT"]
[Termination "parcellforce won by checkmate"]

1. d4 {[%clk 0:04:59.2]} 1... d5 {[%clk 0:04:58.9]} 2. c4 {[%clk 0:04:59.1]}
2... dxc4 {[%clk 0:04:57.3]} 3. e3 {[%clk 0:04:57.5]} 3... Nf6 {[%clk
0:04:56.1]} 4. Bxc4 {[%clk 0:04:56.4]} 4... Bg4 {[%clk 0:04:54.4]} 5. Be2 {[%clk
0:04:53.6]} 5... Bxe2 {[%clk 0:04:50.8]} 6. Qxe2 {[%clk 0:04:53.5]} 6... Nc6
{[%clk 0:04:49.5]} 7. Nf3 {[%clk 0:04:51.9]} 7... h6 {[%clk 0:04:47.9]} 8. Nc3
{[%clk 0:04:51.3]} 8... e6 {[%clk 0:04:44.5]} 9. O-O {[%clk 0:04:50.7]} 9... a6
{[%clk 0:04:36.9]} 10. a3 {[%clk 0:04:48.3]} 10... Qd6 {[%clk 0:04:36]} 11. Qc2
{[%clk 0:04:42.7]} 11... O-O-O {[%clk 0:04:35.1]} 12. Rd1 {[%clk 0:04:40.7]}
12... Ng4 {[%clk 0:04:33.7]} 13. Ne4 {[%clk 0:04:35]} 13... Qd7 {[%clk
0:04:19.2]} 14. h3 {[%clk 0:04:25.8]} 14... Nf6 {[%clk 0:04:11.5]} 15. Nxf6
{[%clk 0:04:24.7]} 15... gxf6 {[%clk 0:04:10.8]} 16. b4 {[%clk 0:04:17.8]} 16...
Rg8 {[%clk 0:04:05.8]} 17. Bb2 {[%clk 0:04:13.8]} 17... Be7 {[%clk 0:03:53.5]}
18. Rd2 {[%clk 0:04:10.1]} 18... f5 {[%clk 0:03:37]} 19. Rad1 {[%clk 0:04:07.7]}
19... f6 {[%clk 0:03:15.5]} 20. e4 {[%clk 0:03:43.3]} 20... fxe4 {[%clk
0:03:13.9]} 21. Qxe4 {[%clk 0:03:40.5]} 21... f5 {[%clk 0:03:06.5]} 22. Qc2
{[%clk 0:03:21.4]} 22... f4 {[%clk 0:02:54.7]} 23. Ne5 {[%clk 0:03:20]} 23...
Nxe5 {[%clk 0:02:53.5]} 24. dxe5 {[%clk 0:03:19.1]} 24... Qe8 {[%clk 0:02:52.7]}
25. Rxd8+ {[%clk 0:03:18.7]} 25... Qxd8 {[%clk 0:02:51.9]} 26. Rxd8+ {[%clk
0:03:17.8]} 26... Rxd8 {[%clk 0:02:51.6]} 27. Qe4 {[%clk 0:03:07.4]} 27... Rf8
{[%clk 0:02:48.6]} 28. f3 {[%clk 0:03:01.5]} 28... Kb8 {[%clk 0:02:43.9]} 29.
Qc4 {[%clk 0:03:00.6]} 29... Bg5 {[%clk 0:02:27.2]} 30. Qxe6 {[%clk 0:02:55.4]}
30... Rd8 {[%clk 0:02:25.1]} 31. h4 {[%clk 0:02:39.8]} 31... Rd1+ {[%clk
0:02:08.2]} 32. Kh2 {[%clk 0:02:38.8]} 32... Bxh4 {[%clk 0:02:06.4]} 33. Qxh6
{[%clk 0:02:35.1]} 33... Bg3+ {[%clk 0:02:04.1]} 34. Kh3 {[%clk 0:02:33.6]}
34... Rh1+ {[%clk 0:02:02.2]} 35. Kg4 {[%clk 0:02:31.5]} 35... Rxh6 {[%clk
0:02:00.5]} 36. Kf5 {[%clk 0:02:31.3]} 36... Bh2 {[%clk 0:01:58.6]} 37. e6
{[%clk 0:02:25.1]} 37... Rh5+ {[%clk 0:01:51]} 38. Kf6 {[%clk 0:02:23.9]} 38...
Rh7 {[%clk 0:01:40]} 39. e7 {[%clk 0:02:22.7]} 39... Bg1 {[%clk 0:01:17.9]} 40.
e8=Q+ {[%clk 0:02:17.2]} 40... Ka7 {[%clk 0:01:16.8]} 41. Qe4 {[%clk 0:02:11.7]}
41... Rh6+ {[%clk 0:01:14.7]} 42. Kf5 {[%clk 0:02:08.7]} 42... Rh5+ {[%clk
0:01:13.2]} 43. Kg4 {[%clk 0:02:07.9]} 43... Rh8 {[%clk 0:01:06.4]} 44. Bxh8
{[%clk 0:02:06.4]} 44... Bb6 {[%clk 0:01:04]} 45. Bd4 {[%clk 0:02:05.6]} 45...
Bxd4 {[%clk 0:01:00.9]} 46. Qxd4+ {[%clk 0:02:05.5]} 46... b6 {[%clk 0:00:59.8]}
47. Kxf4 {[%clk 0:02:04.7]} 47... Kb7 {[%clk 0:00:58.8]} 48. g4 {[%clk
0:02:03.3]} 48... a5 {[%clk 0:00:56.3]} 49. g5 {[%clk 0:02:00.5]} 49... axb4
{[%clk 0:00:54.1]} 50. axb4 {[%clk 0:02:00.4]} 50... b5 {[%clk 0:00:49.6]} 51.
g6 {[%clk 0:01:59.2]} 51... c6 {[%clk 0:00:43]} 52. g7 {[%clk 0:01:55.4]} 52...
Ka6 {[%clk 0:00:41.9]} 53. g8=Q {[%clk 0:01:50.7]} 53... c5 {[%clk 0:00:41.2]}
54. Qe6+ {[%clk 0:01:47.2]} 54... Kb7 {[%clk 0:00:36.9]} 55. Qdd7+ {[%clk
0:01:45.7]} 55... Kb8 {[%clk 0:00:33.1]} 56. Qee8# {[%clk 0:01:40.9]} 1-0

[Event "Live Chess"]
[Site "Chess.com"]
[Date "2023.05.20"]
[Round "-"]
[White "Vitalii18a"]
[Black "ameetghasi100"]
[Result "0-1"]
[WhiteElo "1101"]
[BlackElo "2686"]
[TimeControl "300"]
[EndTime "13:41:48 PDT"]
[Termination "ameetghasi100 won by resignation"]

1. e4 {[%clk 0:04:57.5]} 1... c5 {[%clk 0:04:59.9]} 2. c3 {[%clk 0:04:47.9]}
2... e6 {[%clk 0:04:57.8]} 3. Nf3 {[%clk 0:04:45.7]} 3... Nf6 {[%clk 0:04:57.2]}
4. d3 {[%clk 0:04:40.7]} 4... Nc6 {[%clk 0:04:54.9]} 5. Be2 {[%clk 0:04:39.8]}
5... d6 {[%clk 0:04:51.7]} 6. O-O {[%clk 0:04:39.7]} 6... h6 {[%clk 0:04:50.3]}
7. Re1 {[%clk 0:04:37.4]} 7... g5 {[%clk 0:04:49.7]} 8. h3 {[%clk 0:04:33.4]}
8... Bg7 {[%clk 0:04:49.1]} 9. Rf1 {[%clk 0:04:32]} 9... Rg8 {[%clk 0:04:48.2]}
10. Re1 {[%clk 0:04:30.6]} 10... Bh8 {[%clk 0:04:47.3]} 11. Na3 {[%clk 0:04:25]}
11... a6 {[%clk 0:04:44.3]} 12. Nc4 {[%clk 0:04:20.1]} 12... b5 {[%clk
0:04:42.8]} 13. Ncd2 {[%clk 0:04:12.5]} 13... Bb7 {[%clk 0:04:41.8]} 14. Nb3
{[%clk 0:04:10.7]} 14... Qc7 {[%clk 0:04:36.7]} 15. d4 {[%clk 0:03:54.7]} 15...
Nxe4 {[%clk 0:04:34]} 16. dxc5 {[%clk 0:03:50.3]} 16... d5 {[%clk 0:04:33.1]}
17. Nbd4 {[%clk 0:02:56.3]} 17... Nxc5 {[%clk 0:04:30.7]} 18. Nxc6 {[%clk
0:02:54.3]} 18... Bxc6 {[%clk 0:04:30.6]} 19. b4 {[%clk 0:02:51.7]} 19... Ne4
{[%clk 0:04:28.4]} 20. Ne5 {[%clk 0:02:45.8]} 20... Bxe5 {[%clk 0:04:25.4]} 21.
f3 {[%clk 0:02:44.3]} 21... Nxc3 {[%clk 0:04:23.4]} 22. Qc2 {[%clk 0:02:39.1]}
22... Nxe2+ {[%clk 0:04:21.1]} 23. Qxe2 {[%clk 0:02:37.1]} 23... Bxa1 {[%clk
0:04:21]} 24. Bd2 {[%clk 0:02:16]} 24... Bd4+ {[%clk 0:04:19.5]} 25. Kh1 {[%clk
0:02:13.5]} 25... h5 {[%clk 0:04:17.6]} 26. Bxg5 {[%clk 0:02:10.8]} 26... Rxg5
{[%clk 0:04:15.8]} 27. f4 {[%clk 0:02:03.6]} 27... Qxf4 {[%clk 0:04:13.2]} 28.
Rf1 {[%clk 0:01:59.8]} 28... Qg3 {[%clk 0:04:10.4]} 0-1

[Event "Live Chess"]
[Site "Chess.com"]
[Date "2023.05.20"]
[Round "-"]
[White "whitedjohn"]
[Black "tehanu"]
[Result "1-0"]
[WhiteElo "1651"]
[BlackElo "1120"]
[TimeControl "300"]
[EndTime "13:41:51 PDT"]
[Termination "whitedjohn won on time"]

1. e4 {[%clk 0:04:54.6]} 1... Nf6 {[%clk 0:04:58.1]} 2. e5 {[%clk 0:04:52.3]}
2... Nd5 {[%clk 0:04:55.7]} 3. d4 {[%clk 0:04:49.6]} 3... d6 {[%clk 0:04:53.8]}
4. f4 {[%clk 0:04:45.4]} 4... g6 {[%clk 0:04:47.6]} 5. Nf3 {[%clk 0:04:41]} 5...
Bg7 {[%clk 0:04:46.2]} 6. c3 {[%clk 0:04:32]} 6... O-O {[%clk 0:04:37.1]} 7. Bd3
{[%clk 0:04:31.5]} 7... Nc6 {[%clk 0:04:28.7]} 8. O-O {[%clk 0:04:30.9]} 8...
dxe5 {[%clk 0:04:27.6]} 9. fxe5 {[%clk 0:04:28]} 9... f6 {[%clk 0:04:23.7]} 10.
exf6 {[%clk 0:04:09.4]} 10... exf6 {[%clk 0:04:12.7]} 11. c4 {[%clk 0:03:50]}
11... Ndb4 {[%clk 0:03:49.5]} 12. d5 {[%clk 0:03:48.5]} 12... Nxd3 {[%clk
0:03:47]} 13. Qxd3 {[%clk 0:03:47]} 13... Ne5 {[%clk 0:03:46.1]} 14. Nxe5 {[%clk
0:03:38.7]} 14... fxe5 {[%clk 0:03:46]} 15. Rxf8+ {[%clk 0:03:29.1]} 15... Qxf8
{[%clk 0:03:20.7]} 16. Nc3 {[%clk 0:03:28]} 16... Qc5+ {[%clk 0:03:18.3]} 17.
Be3 {[%clk 0:03:25.7]} 17... Qd6 {[%clk 0:03:14.4]} 18. Nb5 {[%clk 0:03:11.6]}
18... Qd8 {[%clk 0:03:09.1]} 19. Nxa7 {[%clk 0:02:55.3]} 19... Bf5 {[%clk
0:03:05.7]} 20. Qb3 {[%clk 0:02:47.9]} 20... c6 {[%clk 0:02:53.3]} 21. dxc6
{[%clk 0:02:32.2]} 21... bxc6 {[%clk 0:01:46]} 22. Nxc6 {[%clk 0:02:29.4]} 22...
Qc7 {[%clk 0:01:40.6]} 23. Nb4 {[%clk 0:02:20.2]} 23... Rb8 {[%clk 0:01:32.3]}
24. Qc3 {[%clk 0:01:59.8]} 24... e4 {[%clk 0:01:03.9]} 25. Qb3 {[%clk
0:01:48.4]} 25... Be6 {[%clk 0:00:55.1]} 26. Rc1 {[%clk 0:01:42.9]} 26... Qe7
{[%clk 0:00:53]} 27. a3 {[%clk 0:01:31.5]} 27... Rc8 {[%clk 0:00:49.4]} 28. Nd5
{[%clk 0:01:09.9]} 28... Qd6 {[%clk 0:00:15.8]} 29. Qb5 {[%clk 0:00:41.1]} 29...
Bxd5 {[%clk 0:00:14.1]} 30. Qxd5+ {[%clk 0:00:37.3]} 30... Qxd5 {[%clk
0:00:13.3]} 31. cxd5 {[%clk 0:00:34.4]} 31... Rxc1+ {[%clk 0:00:12.6]} 32. Bxc1
{[%clk 0:00:31.3]} 32... e3 {[%clk 0:00:12]} 33. Bxe3 {[%clk 0:00:27.6]} 33...
Bxb2 {[%clk 0:00:11.5]} 34. a4 {[%clk 0:00:24.8]} 34... Bc3 {[%clk 0:00:09.2]}
35. Kf2 {[%clk 0:00:21.5]} 35... Kf7 {[%clk 0:00:07.6]} 36. Ke2 {[%clk
0:00:20.4]} 36... Kf6 {[%clk 0:00:06.8]} 37. Kd3 {[%clk 0:00:20]} 37... Ba5
{[%clk 0:00:06.4]} 38. Kc4 {[%clk 0:00:17.3]} 38... Ke5 {[%clk 0:00:05.3]} 39.
Kc5 {[%clk 0:00:15]} 39... Bc3 {[%clk 0:00:03.2]} 40. Kc6 {[%clk 0:00:12.6]}
40... Be1 {[%clk 0:00:02.7]} 41. d6 {[%clk 0:00:09.9]} 41... Bb4 {[%clk
0:00:02.6]} 42. d7 {[%clk 0:00:08.1]} 42... Ba5 {[%clk 0:00:02.5]} 43. Kb7
{[%clk 0:00:05.2]} 43... Bd8 {[%clk 0:00:01.5]} 44. Bb6 {[%clk 0:00:04.3]} 1-0

[Event "Live Chess"]
[Site "Chess.com"]
[Date "2023.05.20"]
[Round "-"]
[White "GMHarry-youtube"]
[Black "SirEntrails"]
[Result "1-0"]
[WhiteElo "2075"]
[BlackElo "535"]
[TimeControl "300"]
[EndTime "13:41:52 PDT"]
[Termination "GMHarry-youtube won by checkmate"]

1. e4 {[%clk 0:04:58.3]} 1... d5 {[%clk 0:04:54.1]} 2. exd5 {[%clk 0:04:57.1]}
2... Nf6 {[%clk 0:04:48.7]} 3. d4 {[%clk 0:04:55.9]} 3... Qxd5 {[%clk
0:04:42.6]} 4. Nf3 {[%clk 0:04:52.6]} 4... Ne4 {[%clk 0:04:36.7]} 5. c4 {[%clk
0:04:48.9]} 5... Qa5+ {[%clk 0:04:25.9]} 6. Nbd2 {[%clk 0:04:44.3]} 6... Nxd2
{[%clk 0:04:20.8]} 7. Bxd2 {[%clk 0:04:43.3]} 7... Qf5 {[%clk 0:04:08.7]} 8. Bc3
{[%clk 0:04:39.4]} 8... e6 {[%clk 0:04:05.9]} 9. Bd3 {[%clk 0:04:37.7]} 9... Qg4
{[%clk 0:03:58.5]} 10. h3 {[%clk 0:04:31.6]} 10... Qxg2 {[%clk 0:03:55.6]} 11.
Rg1 {[%clk 0:04:30.9]} 11... Qxh3 {[%clk 0:03:51.4]} 12. Rg3 {[%clk 0:04:29.6]}
12... Qh1+ {[%clk 0:03:37.3]} 13. Bf1 {[%clk 0:04:21]} 13... Bd6 {[%clk
0:03:27.8]} 14. Rxg7 {[%clk 0:04:18.8]} 14... e5 {[%clk 0:03:14.2]} 15. dxe5
{[%clk 0:04:15.7]} 15... Bc5 {[%clk 0:03:06.6]} 16. Qd5 {[%clk 0:04:09.1]} 16...
b6 {[%clk 0:03:04.2]} 17. Qxf7+ {[%clk 0:04:08]} 17... Kd8 {[%clk 0:02:59.9]}
18. O-O-O+ {[%clk 0:04:07.1]} 18... Nd7 {[%clk 0:02:54]} 19. Rxd7+ {[%clk
0:04:05]} 19... Bxd7 {[%clk 0:02:51.3]} 20. Qxd7# {[%clk 0:04:04.9]} 1-0